Cogmind - Beta 10 X2 @@@ ROGUE MODE // 2020.06.16 @ 23:20:02 Player: Ape Result: Destroyed by S-27 Virus with Autogun Performance ------------- Evolutions (5) 2500 Regions Visited (16) 3200 Robots Destroyed (187) 935 Value Destroyed (7098) 7098 Prototype IDs (52) 1040 Alien Tech Used (1) 200 Bonus (1519) 1519 TOTAL SCORE: 16492 Bonus ------- High Alert Combat Kills 196 Follower Combat Kills 40 Entered Garrisons 200 Used RIF Installer 500 Aligned with FarCom 300 Met Zhirov 300 Friendly Fire -17 Cogmind --------- Core Integrity 0/1000 Matter 295/300 Energy 100/100 System Corruption 8% Temperature Cool (0) Movement Core (50) Location -4/Proximity Caves Parts ------- > --- POWER (1) -------- (None) > --- PROPULSION (4) --- Flexi-carbon Leg > --- UTILITY (8) ------ Targeting Computer Advanced Targeting Computer > --- WEAPON (4) ------- Power Maul > --- INVENTORY (4) ---- High-capacity Storage Unit Advanced Energy Well (800) Transdimensional Reconstructor Improved Remote Datajack Peak State ------------ > --- POWER ------------ Enhanced Fission Core > --- PROPULSION ------- Heavy Treads Heavy Treads > --- UTILITY ---------- Improved Cryofiber Web Improved Cooling System High-capacity Storage Unit High-capacity Storage Unit Advanced Terrain Scan Processor Advanced Targeting Computer Layered Medium Armor Plating Relay Coupler [NC] > --- WEAPON ----------- Long-range Proton Cannon Long-range Proton Cannon Long-range Proton Cannon Disruptor Cannon > --- INVENTORY -------- Antimatter Reactor Energy Well Long-range Terrain Scanner Advanced Targeting Computer Improved Light Armor Plating Medium Reflective Plating Precision Shock Rifle Wave Gun Phase Gun Phase Gun Compact Ion Cannon Neutron Cannon Precision Assault Rifle Coil Gun Coil Gun Magnetic Acceleration Cannon Proton Missile Launcher Precision Grenade Launcher Improved Remote Datajack Chainsword [Rating: 89] Favorites ----------- Power Heavy Deuterium Engine Engine Heavy Deuterium Engine Power Core Light Nuclear Core Reactor Antimatter Reactor Propulsion Light Treads Treads Light Treads Leg Flexi-carbon Leg Wheel Compact Wheel Flight Unit VTOL Module Utility High-capacity Storage Unit Device Improved Cooling System Storage High-capacity Storage Unit Processor Advanced Targeting Computer Hackware Relay Coupler [NC] Protection Hardened Heavy Armor Plating Weapon Precision Assault Rifle Energy Gun Improved Medium Laser Energy Cannon Long-range Proton Cannon Ballistic Gun Precision Assault Rifle Ballistic Cannon Light Cannon Launcher Precision Grenade Launcher Special Weapon Remote Datajack Impact Weapon Heavy Mace Slashing Weapon Chainsword Build | -11 -10 -10 -10 -9 -8 -7 -7 -7 -6 -6 -6 -5 -5 -5 -5 -4 ------- Run | Scr Mat Min Exi Min Mat Fac Gar Fac Fac Was Fac Fac Upp Upp Zhi Pro Slots Evolved 10 | . . . . . 4 2 . . 2 . . 2 . . . . Power . | . . . . . . . . . . . . . . . . . Propulsion 2 | . . . . . . 1 . . . . . 1 . . . . Utility 6 | . . . . . 4 . . . 1 . . 1 . . . . Weapon 2 | . . . . . . 1 . . 1 . . . . . . . Parts Attached 269 | . 9 3 2 . 39 8 6 23 29 19 43 22 11 50 2 3 Power 10 | . 1 . . . 3 1 . 1 . 1 1 . 1 1 . . Engine 6 | . . . . . 2 1 . 1 . 1 . . . 1 . . Core 3 | . 1 . . . 1 . . . . . . . 1 . . . Reactor 1 | . . . . . . . . . . . 1 . . . . . Propulsion 28 | . 2 1 . . 10 1 . 3 2 1 . 1 . 6 . 1 Treads 17 | . 1 1 . . 5 . . 3 2 1 . 1 . 3 . . Leg 3 | . . . . . . . . . . . . . . 2 . 1 Wheel 7 | . 1 . . . 5 1 . . . . . . . . . . Hover . | . . . . . . . . . . . . . . . . . Flight 1 | . . . . . . . . . . . . . . 1 . . Utility 89 | . 4 . 2 . 11 2 1 10 8 5 13 10 3 17 2 1 Device 33 | . . . . . 1 1 . 6 3 1 5 6 1 9 . . Storage 16 | . 3 . 2 . 1 1 . . . 1 1 1 1 3 2 . Processor 8 | . . . . . 1 . 1 1 . 1 1 1 . 1 . 1 Hackware 3 | . . . . . . . . . 1 1 1 . . . . . Protection 29 | . 1 . . . 8 . . 3 4 1 5 2 1 4 . . Artifact . | . . . . . . . . . . . . . . . . . Weapon 142 | . 2 2 . . 15 4 5 9 19 12 29 11 7 26 . 1 Energy Gun 29 | . 1 . . . 5 . 2 4 3 1 5 2 . 6 . . Energy Cannon 17 | . . . . . . . 1 . . 1 2 3 4 6 . . Ballistic Gun 39 | . . . . . 5 4 . 1 10 7 8 . . 4 . . Ballistic Cannon 4 | . 1 1 . . . . . . . . 1 . . 1 . . Launcher 17 | . . 1 . . 4 . 2 . 1 . 2 2 1 4 . . Special Weapon 8 | . . . . . . . . . 1 1 4 2 . . . . Impact Weapon 2 | . . . . . . . . . . . . . . 1 . 1 Slashing Weapon 26 | . . . . . 1 . . 4 4 2 7 2 2 4 . . Piercing Weapon . | . . . . . . . . . . . . . . . . . Special Melee Weapon . | . . . . . . . . . . . . . . . . . Unidentified Prototypes 12 | . . . . . . 2 . 2 . 1 . 1 2 1 3 . Parts Lost 70 | . 1 1 . . 18 1 . 2 1 1 6 1 1 36 . 1 Power 4 | . . . . . 2 . . . . . . . . 2 . . Propulsion 14 | . . 1 . . 7 . . . . . . . . 5 . 1 Utility 21 | . . . . . 5 1 . . . 1 2 1 . 11 . . Weapon 31 | . 1 . . . 4 . . 2 1 . 4 . 1 18 . . Highest Loss Streak 20 | . 1 1 . . 5 1 . 1 1 1 3 1 1 20 . 1 Average Slot Usage (%) 88 | . 99 100 99 100 76 99 99 93 92 85 89 88 87 73 17 22 Engine 3 | . 2 . . . 3 7 7 7 6 5 5 . . . . . Core 3 | . 11 14 14 14 4 . . . . . . . 1 3 . . Treads 12 | . 11 14 14 14 9 7 7 18 20 13 13 11 11 6 . . Wheel 4 | . 12 14 14 14 5 15 15 4 . . . . . . . . Device 5 | . . . . . 1 1 7 6 12 1 6 6 10 10 . . Storage 14 | . 14 14 20 28 21 15 15 15 13 12 13 11 11 11 . . Processor 3 | . . . . . . . 2 . . 5 6 11 11 9 5 9 Hackware 1 | . . . . . . . . . . 4 4 5 5 1 . . Protection 10 | . 13 14 6 . 10 28 20 16 12 12 11 8 5 3 . . Energy Gun 3 | . 1 . . . 4 2 1 10 7 1 2 1 . 1 . . Energy Cannon 2 | . . . . . . . 1 . . . . 4 18 11 . . Ballistic Gun 11 | . 17 14 14 14 10 16 19 7 13 21 17 3 . 1 . . Ballistic Cannon 2 | . 7 14 14 14 1 . . . . . . 3 . . . . Slashing Weapon 1 | . . . . . . 2 . 3 3 . 1 4 3 1 . . Naked Turns . | . . . . . . . . . . . . . . . . . Heaviest Build 131 | 9 46 46 73 73 95 98 99 114 127 131 122 120 128 128 3 3 Greatest Support 140 | 20 20 16 16 16 40 32 32 62 80 100 100 140 140 140 5 5 Greatest Overweight (x) 33 | . 2 2 4 4 8 3 3 7 1 1 1 1 . 33 . . Average Overweight (x) 1 | . 1 2 2 4 4 2 2 1 1 1 1 . . 1 . . Largest Inventory Capacity 20 | . 12 12 20 20 20 20 20 20 20 20 20 20 20 20 4 4 Average Capacity 18 | . 11 12 15 20 20 20 20 20 20 19 20 20 20 18 4 4 Most Carried 20 | . 12 12 18 19 20 20 20 20 20 20 20 20 20 20 4 4 Average Carried 17 | . 10 11 13 18 19 19 19 19 19 14 19 19 19 15 3 4 Final Capacity 20 | 6 12 12 20 20 20 20 20 20 20 20 20 20 20 4 4 4 Final Carried 20 | 6 12 12 18 19 20 20 20 20 20 17 20 20 20 4 4 4 Class Distribution -------------------- 41% | Hauler-Mutant 16% | Hauler-Tank 15% | Mutant 13% | Hauler-Skirmisher 10% | Hauler-Assassin Dominant Class ---------------- Mutant | -10/Materials Mutant | -10/Mines Hauler-Mutant | -10/Exiles Hauler-Mutant | -9/Mines Hauler-Mutant | -8/Materials Hauler-Tank | -7/Factory Scavenger-Tank | -7/Garrison Hauler-Mutant | -7/Factory Hauler-Assassin | -6/Factory Hauler-Tank | -6/Waste Hauler-Mutant | -6/Factory Hauler-Assassin | -5/Factory Hauler-Skirmisher | -5/Upper Caves Hauler-Mutant | -5/Upper Caves Mutant | -5/Zhirov Mutant | -4/Proximity Caves Resources | -11 -10 -10 -10 -9 -8 -7 -7 -7 -6 -6 -6 -5 -5 -5 -5 -4 ----------- Run | Scr Mat Min Exi Min Mat Fac Gar Fac Fac Was Fac Fac Upp Upp Zhi Pro Matter Collected 5912 | 200 379 60 . 20 756 135 126 325 869 746 1063 243 175 760 35 20 Remotely . | . . . . . . . . . . . . . . . . . Salvage Created 10484 | . 544 95 . . 1004 156 145 278 1646 1702 1455 536 545 1653 374 351 Parts 361 | . 30 11 . . 72 7 10 18 63 18 50 13 21 43 2 3 Haulers Intercepted 4 | . . . . . 1 . . . 2 . 1 . . . . . Recyclers Shooed 13 | . 1 . . . 4 . . . 6 . 1 1 . . . . Parts Field Recycled . | . . . . . . . . . . . . . . . . . Retrieved Matter . | . . . . . . . . . . . . . . . . . Parts Self-Destructed 42 | . . . . . . . . . . . . . 11 29 2 . Prevented 24 | . . . . . . . . . . . . . 10 14 . . Kills | -11 -10 -10 -10 -9 -8 -7 -7 -7 -6 -6 -6 -5 -5 -5 -5 -4 ------- Run | Scr Mat Min Exi Min Mat Fac Gar Fac Fac Was Fac Fac Upp Upp Zhi Pro Combat Hostiles Destroyed 148 | . 15 3 . . 37 3 6 4 12 6 16 8 10 28 . . Guns 78 | . 9 . . . 18 3 3 4 10 3 14 3 . 11 . . Cannons 22 | . 6 . . . 3 . . . . 2 . 2 1 8 . . AOE 41 | . . 3 . . 16 . 3 . 2 1 2 3 5 6 . . Classes Destroyed 13 | . 3 2 . . 2 . 1 1 1 1 . . . 2 . . Worker 12 | . 1 . . . 3 . . . 5 . 3 . . . . . Builder 7 | . . 1 . . 6 . . . . . . . . . . . Hauler 4 | . . . . . 1 . . . 2 . 1 . . . . . Recycler 14 | . . 1 . . 1 . . 1 6 . 3 2 . . . . Mechanic 1 | . . . . . . . . . . . . . . 1 . . Swarmer 42 | . 3 3 . . 17 . 3 . 3 . . 4 3 6 . . Grunt 66 | . 12 . . . 14 3 2 . 2 . 13 4 4 12 . . Brawler 3 | . . . . . . . . . . . . . . 3 . . Duelist 3 | . . . . . . . . . 1 . . . . 2 . . Sentry 13 | . . . . . 6 . . 2 1 . 1 . 1 2 . . Hunter 10 | . . . . . . . 1 1 3 . . . 2 3 . . Programmer 5 | . . . . . . . . 1 2 . 2 . . . . . Compactor 6 | . . . . . . . . . . 6 . . . . . . Packrat 1 | . . . . . . . . . . . . . . . . 1 Best Kill Streak 17 | . 4 5 . . 17 3 4 2 8 3 7 4 4 9 . . Combat Bots Only 10 | . 4 3 . . 10 3 4 1 4 3 6 4 4 9 . . Max Kills in Single Turn 4 | . 1 3 . . 4 1 3 1 2 1 3 3 2 2 . 1 Gunslinging 1 | . . . . . . . . . . . . . . 1 . . Exploded 3 | . . 3 . . 3 . 3 . 2 1 2 3 2 2 . . Melee . | . . . . . . . . . . . . . . . . . Uniques/NPCs Destroyed . | . . . . . . . . . . . . . . . . . Combat | -11 -10 -10 -10 -9 -8 -7 -7 -7 -6 -6 -6 -5 -5 -5 -5 -4 -------- Run | Scr Mat Min Exi Min Mat Fac Gar Fac Fac Was Fac Fac Upp Upp Zhi Pro Damage Taken 13570 | . 602 155 . . 2579 46 97 564 1550 208 1765 615 471 4761 . 157 Core 1742 | . 76 9 . . 347 15 . 43 54 75 118 69 95 725 . 116 Absorbed by Shields . | . . . . . . . . . . . . . . . . . Reduced by Siege Mode 148 | . . . . . . . . . . . 22 31 5 90 . . Core Remaining (%) 72 | 100 . . . 66 36 . . 91 . . 70 . . . . . Volleys Fired 470 | . 58 6 . . 107 5 13 20 60 35 48 17 12 89 . . Largest 4 | . 2 2 . . 2 3 3 3 4 4 4 4 4 4 . . Hottest 347 | . 85 55 . . 126 84 131 140 187 156 245 303 333 347 . . Shots Fired 1072 | . 107 11 . . 194 15 29 35 194 118 138 36 27 168 . . Gun 840 | . 91 5 . . 157 15 23 35 184 107 120 13 1 89 . . Cannon 167 | . 16 5 . . 21 . 4 . . 6 7 16 22 70 . . Launcher 42 | . . 1 . . 16 . 2 . 2 . 4 4 4 9 . . Special 23 | . . . . . . . . . 8 5 7 3 . . . . Kinetic 688 | . 96 10 . . 142 15 17 20 124 107 84 3 . 70 . . Thermal 222 | . 11 . . . 36 . 10 15 60 6 43 . 1 40 . . Explosive 37 | . . 1 . . 16 . 2 . 2 . 4 4 . 8 . . Electromagnetic 102 | . . . . . . . . . . . . 26 26 50 . . Robot Hit Streak 32 | . 10 5 . . 11 9 10 11 32 15 26 28 27 22 . . Robot Miss Streak 16 | . 4 2 . . 4 1 2 2 3 16 2 2 1 7 . . Penetration Max 1 | . . . . . . . . . . . 1 1 . . . . Secondary Targets 13 | . . . . . 3 . . . 2 . 4 . . 4 . . Max Gunslinging Chain 1 | . . . . . 1 . . . 1 . 1 . . 1 . . Shots Hit Robots 829 | . 58 6 . . 137 10 20 27 161 104 112 29 23 129 7 6 Core Hits 420 | . 30 6 . . 81 7 12 11 69 46 62 18 12 61 3 2 Critical Hits 11 | . 1 . . . . . . . 1 1 4 1 1 2 . . Critical Kills 4 | . . . . . . . . . . 1 1 1 . 1 . . Critical Parts Destroyed 7 | . 1 . . . . . . . 1 . 3 . 1 1 . . Melee Attacks 130 | . . . . . 2 . . 17 31 6 21 10 5 23 7 8 Impact 28 | . . . . . . . . . . . . . . 13 7 8 Slashing 102 | . . . . . 2 . . 17 31 6 21 10 5 10 . . Piercing . | . . . . . . . . . . . . . . . . . Sneak Attacks 13 | . . . . . . . . 1 8 . 1 1 . 1 . 1 Combat Hostiles . | . . . . . . . . . . . . . . . . . Follow-up Attacks . | . . . . . . . . . . . . . . . . . Damage Inflicted 24046 | . 664 258 . . 3834 173 584 584 4126 3325 3330 1162 1110 3850 590 456 Guns 12416 | . 492 14 . . 1644 173 321 482 2771 2196 2321 314 28 1660 . . Cannons 3699 | . 172 69 . . 295 . 50 . . 683 278 301 632 1219 . . Explosions 5177 | . . 175 . . 1895 . 213 . 268 446 641 357 450 732 . . Melee 2745 | . . . . . . . . 102 1078 . 90 190 . 239 590 456 Ramming 9 | . . . . . . . . . 9 . . . . . . . Kinetic 9932 | . 505 83 . . 1463 173 238 300 2012 2196 1616 94 . 1252 . . Thermal 5014 | . 159 . . . 476 . 133 182 856 1129 983 30 337 729 . . Explosive 4028 | . . 175 . . 1895 . 213 . 171 . 641 327 . 606 . . Electromagnetic 2318 | . . . . . . . . . . . . 521 773 1024 . . Impact 1127 | . . . . . . . . . . . . . . 81 590 456 Slashing 1618 | . . . . . . . . 102 1078 . 90 190 . 158 . . Piercing . | . . . . . . . . . . . . . . . . . Highest Corruption 84 | . . . . . 5 . . 1 1 80 84 . . 8 8 8 Average Corruption 43 | . . . . . 5 . . 1 1 41 81 . . 7 8 8 Corruption Purged . | . . . . . . . . . . . . . . . . . Effects 501 | . . . . . 11 . . 4 2 131 328 . . 17 4 4 Message Errors 41 | . . . . . 3 . . 2 . 10 23 . . 2 . 1 Matter Fused 38 | . . . . . 1 . . . . 7 28 . . 2 . . Heat Flow Errors 28 | . . . . . 1 . . . . 3 17 . . 5 1 1 Energy Discharges 30 | . . . . . . . . . . 6 19 . . 2 2 1 Parts Rejected 6 | . . . . . . . . . . 4 2 . . . . . Data Loss (minor) 27 | . . . . . 2 . . 1 . 9 13 . . 2 . . Data Loss (major) 10 | . . . . . . . . . . 2 7 . . . . 1 Misfires 13 | . . . . . 1 . . . . 9 3 . . . . . Alerts 6 | . . . . . . . . . . 1 5 . . . . . Misdirections 92 | . . . . . . . . . . 23 69 . . . . . Targeting Errors 177 | . . . . . 3 . . 1 2 47 121 . . 2 1 . Weapon Failures 33 | . . . . . . . . . . 10 21 . . 2 . . Overload Shots 2 | . . . . . . . . . . . 2 . . . . . Overflow Damage 1217 | . . . . . 78 . . . 322 . 65 96 1 162 313 180 Projectiles 98 | . . . . . 18 . . . . . 55 11 . 14 . . Explosions 164 | . . . . . 60 . . . 59 . 10 . 1 34 . . Melee 955 | . . . . . . . . . 263 . . 85 . 114 313 180 Knockbacks 7 | . . 2 . . 2 . . . . . . . . . . 3 Impact 3 | . . . . . . . . . . . . . . . . 3 Kinetic 4 | . . 2 . . 2 . . . . . . . . . . . Secondary . | . . . . . . . . . . . . . . . . . Self-Inflicted Damage 503 | . . 49 . . 108 . . . . 129 . 118 61 38 . . Shots 13 | . . 1 . . 3 . . . . 2 . 3 2 2 . . Rammed . | . . . . . . . . . . . . . . . . . Targets Rammed 1 | . . . . . . . . . 1 . . . . . . . Kicked . | . . . . . . . . . . . . . . . . . Crushed 1 | . . . . . . . . . 1 . . . . . . . Highest Temperature 479 | . 233 14 . . 317 115 84 144 302 285 335 347 337 479 158 207 Average Temperature 107 | . 57 10 . . 85 64 31 62 79 83 105 143 113 214 100 120 Received Heat Transfer 3255 | . 276 . . . 747 27 54 72 171 . 642 27 93 1137 . 9 Effects 9 | . 2 . . . 2 . . . . . . . . 5 . . Energy Bleed 3 | . . . . . 1 . . . . . . . . 2 . . Interference 2 | . 2 . . . . . . . . . . . . . . . Matter Decay 2 | . . . . . . . . . . . . . . 2 . . Short Circuit 1 | . . . . . . . . . . . . . . 1 . . Damage (minor) 1 | . . . . . 1 . . . . . . . . . . . Siege Activations 14 | . . . . . . . . . . . 5 2 2 5 . . Total Turns 163 | . . . . . . . . . . . 61 30 8 64 . . Longest Duration 33 | . . . . . . . . . . . 33 22 7 32 . . Robots Corrupted 7 | . . . . . . . . . . . . . 4 3 . . Combat Hostiles 7 | . . . . . . . . . . . . . 4 3 . . Parts Fried 23 | . . . . . . . . . . . . 6 6 11 . . Impact Corruptions 28 | . . . . . . . . . . . . . . 2 17 9 Robots Melted . | . . . . . . . . . . . . . . . . . Combat Hostiles . | . . . . . . . . . . . . . . . . . Parts Melted 12 | . . . . . 1 . . 1 2 1 4 . . 3 . . Heat Transferred 7492 | . 370 . . . 1036 . 259 370 1708 960 1550 50 287 902 . . Parts Sabotaged . | . . . . . . . . . . . . . . . . . Parts Stolen . | . . . . . . . . . . . . . . . . . Parts Stripped . | . . . . . . . . . . . . . . . . . Power Chain Reactions 5 | . . . . . . . . . . . . 1 3 1 . . Missiles Intercepted . | . . . . . . . . . . . . . . . . . Alert | -11 -10 -10 -10 -9 -8 -7 -7 -7 -6 -6 -6 -5 -5 -5 -5 -4 ------- Run | Scr Mat Min Exi Min Mat Fac Gar Fac Fac Was Fac Fac Upp Upp Zhi Pro Peak Influence 594 | . 377 198 . . 594 345 528 285 213 448 232 290 . . . . Average Influence 169 | . 204 66 . . 406 296 353 74 83 208 129 206 . . . . Maximum Alert Level 2 | . 1 . . . 2 1 2 1 1 2 1 1 . . . . Low Security (%) 65 | . 42 100 . 100 20 . . 82 94 48 87 47 . . . . Level 1 23 | . 57 . . . 8 100 66 17 5 48 12 52 . . . . Level 2 10 | . . . . . 71 . 33 . . 3 . . . . . . Level 3 . | . . . . . . . . . . . . . . . . . Level 4 . | . . . . . . . . . . . . . . . . . Level 5 . | . . . . . . . . . . . . . . . . . High Security . | . . . . . . . . . . . . . . . . . Max Security . | . . . . . . . . . . . . . . . . . Squads Dispatched 29 | . 5 . . . 4 1 . 5 4 . 7 1 . 1 . 1 Investigation 8 | . 1 . . . 1 . . 2 2 . 2 . . . . . Extermination 8 | . . . . . . 1 . 2 2 . 3 . . . . . Reinforcement 11 | . 4 . . . 3 . . 1 . . 2 1 . . . . Assault 2 | . . . . . . . . . . . . . . 1 . 1 Garrison . | . . . . . . . . . . . . . . . . . Intercept . | . . . . . . . . . . . . . . . . . Construction Impeded 2 | . . . . . 2 . . . . . . . . . . . Haulers Reinforced 2 | . . . . . . . . . . . 1 1 . . . . Stealth | -11 -10 -10 -10 -9 -8 -7 -7 -7 -6 -6 -6 -5 -5 -5 -5 -4 --------- Run | Scr Mat Min Exi Min Mat Fac Gar Fac Fac Was Fac Fac Upp Upp Zhi Pro Distress Signals 15 | . 2 . . . 9 . . 1 1 . 2 . . . . . Communications Jammed . | . . . . . . . . . . . . . . . . . Distress Signals . | . . . . . . . . . . . . . . . . . Times Spotted 219 | . 30 3 . . 50 3 8 5 18 6 32 10 11 36 . 7 Peak Tracking Total 10 | . 4 3 . . 8 4 3 1 6 3 6 5 4 10 . 10 Tactical Retreats 15 | . 1 . . . 2 . 1 . 1 . 3 1 1 5 . . Traps | -11 -10 -10 -10 -9 -8 -7 -7 -7 -6 -6 -6 -5 -5 -5 -5 -4 ------- Run | Scr Mat Min Exi Min Mat Fac Gar Fac Fac Was Fac Fac Upp Upp Zhi Pro Traps Triggered 6 | . . . . . . . 1 4 1 . . . . . . . Indirectly . | . . . . . . . . . . . . . . . . . Trap Hack Attempts . | . . . . . . . . . . . . . . . . . Triggered . | . . . . . . . . . . . . . . . . . Disarmed . | . . . . . . . . . . . . . . . . . Reprogrammed . | . . . . . . . . . . . . . . . . . Reused . | . . . . . . . . . . . . . . . . . Traps Extracted . | . . . . . . . . . . . . . . . . . Installed . | . . . . . . . . . . . . . . . . . Triggered 3 | . . . . . . . . . . . . . . 1 . 2 Exploded 2 | . . . . . . . . 2 . . . . . . . . Machines | -11 -10 -10 -10 -9 -8 -7 -7 -7 -6 -6 -6 -5 -5 -5 -5 -4 ---------- Run | Scr Mat Min Exi Min Mat Fac Gar Fac Fac Was Fac Fac Upp Upp Zhi Pro Machines Disabled 18 | . 1 1 . . 3 . 3 . 3 . 3 4 . . . . Max in Single Turn 4 | . 1 1 . . 2 . 1 . 2 . 1 4 . . . . Garrison Access 4 | . . . . . 1 . . 2 . . 1 . . . . . Garrison Relay 3 | . . . . . . . 3 . . . . . . . . . Machines Sabotaged . | . . . . . . . . . . . . . . . . . Garrisons Compromised . | . . . . . . . . . . . . . . . . . Overloaded Fab Kills . | . . . . . . . . . . . . . . . . . Fab Network Shutdowns . | . . . . . . . . . . . . . . . . . Hacking | -11 -10 -10 -10 -9 -8 -7 -7 -7 -6 -6 -6 -5 -5 -5 -5 -4 --------- Run | Scr Mat Min Exi Min Mat Fac Gar Fac Fac Was Fac Fac Upp Upp Zhi Pro Machines Accessed 53 | . 5 . 2 . 8 1 . 8 12 . 7 2 3 . 5 . Terminals 22 | . 4 . . . 5 . . 5 6 . 2 . . . . . Fabricators 2 | . . . . . . . . . 1 . . 1 . . . . Repair Stations 2 | . . . . . . . . . 1 . . 1 . . . . Recycling Units 8 | . 1 . . . 1 . . 1 3 . 2 . . . . . Scanalyzers 4 | . . . . . 1 . . . 1 . 2 . . . . . Garrison Access 5 | . . . . . 1 1 . 2 . . 1 . . . . . Total Hacks 138 | . 18 . 2 . 18 2 . 19 31 . 12 5 13 . 18 . Successful 83 | . 11 . 2 . 9 1 . 10 15 . 4 . 13 . 18 . Failed 55 | . 7 . . . 9 1 . 9 16 . 8 5 . . . . Catastrophic 11 | . 1 . . . . . . 2 4 . 4 . . . . . Database Lockouts . | . . . . . . . . . . . . . . . . . Manual 41 | . 12 . 1 . 3 . . 7 13 . 4 1 . . . . Terminals 64 | . 17 . . . 12 . . 16 16 . 3 . . . . . Fabricators 4 | . . . . . . . . . 1 . . 3 . . . . Repair Stations 4 | . . . . . . . . . 2 . . 2 . . . . Recycling Units 16 | . 1 . . . 1 . . 1 10 . 3 . . . . . Scanalyzers 11 | . . . . . 4 . . . 2 . 5 . . . . . Garrison Access 6 | . . . . . 1 2 . 2 . . 1 . . . . . Terminal Hacks 53 | . 7 . 2 . 3 . . 5 5 . . . 13 . 18 . Record 18 | . . . 1 . . . . . . . . . 11 . 6 . Part Schematic 4 | . . . . . . . . . . . . . . . 4 . Robot Analysis 4 | . . . . . . . . . . . . . . . 4 . Prototype ID Bank 6 | . 1 . . . . . . 1 . . . . . . 4 . Open Door 2 | . . . . . . . . . . . . . 2 . . . Branch Access Points 1 | . . . . . . . . . 1 . . . . . . . Terminal Index 2 | . . . . . 1 . . . 1 . . . . . . . Scanalyzer Index 1 | . . . . . . . . . 1 . . . . . . . Unreport Threat 1 | . . . . . . . . 1 . . . . . . . . Locate Traps 3 | . . . . . 1 . . 1 1 . . . . . . . Dispatch Records 1 | . 1 . . . . . . . . . . . . . . . Maintenance Status 1 | . 1 . . . . . . . . . . . . . . . Hauler Manifests 3 | . 1 . . . . . . 1 1 . . . . . . . Registered Components 2 | . 2 . . . . . . . . . . . . . . . Zone Layout 3 | . 1 . . . 1 . . 1 . . . . . . . . EX-Prototype ID Bank 1 | . . . 1 . . . . . . . . . . . . . Fabricator Hacks 1 | . . . . . . . . . 1 . . . . . . . Build 1 | . . . . . . . . . 1 . . . . . . . Repair Station Hacks 2 | . . . . . . . . . 2 . . . . . . . Scan Component 1 | . . . . . . . . . 1 . . . . . . . Repair 1 | . . . . . . . . . 1 . . . . . . . Recycling Unit Hacks . | . . . . . . . . . . . . . . . . . Scanalyzer 6 | . . . . . 3 . . . . . 3 . . . . . Insert Component 5 | . . . . . 2 . . . . . 3 . . . . . Analyze 1 | . . . . . 1 . . . . . . . . . . . Garrison Access Hacks 5 | . . . . . 1 1 . 2 . . 1 . . . . . Unlock Access 1 | . . . . . . 1 . . . . . . . . . . Seal Access 4 | . . . . . 1 . . 2 . . 1 . . . . . Unauthorized Hacks 16 | . 4 . . . 2 . . 3 7 . . . . . . . Terminals 7 | . 3 . . . 1 . . 2 1 . . . . . . . Assimilate 2 | . 1 . . . . . . 1 . . . . . . . . Botnet 3 | . 1 . . . . . . 1 1 . . . . . . . Operators 2 | . 1 . . . 1 . . . . . . . . . . . Fabricators . | . . . . . . . . . . . . . . . . . Repair Stations . | . . . . . . . . . . . . . . . . . Recycling Units 9 | . 1 . . . 1 . . 1 6 . . . . . . . Monitor 1 | . . . . . . . . . 1 . . . . . . . Reject 2 | . . . . . . . . . 2 . . . . . . . Recyclers 1 | . . . . . . . . . 1 . . . . . . . Mask 2 | . . . . . . . . . 2 . . . . . . . Tunnel 3 | . 1 . . . 1 . . 1 . . . . . . . . Scanalyzers . | . . . . . . . . . . . . . . . . . Garrison Access . | . . . . . . . . . . . . . . . . . Data Cores Recovered . | . . . . . . . . . . . . . . . . . Used . | . . . . . . . . . . . . . . . . . Hacking Detections 34 | . 4 . . . 6 1 . 5 10 . 6 2 . . . . Full Trace Events 3 | . . . . . . . . . 1 . 2 . . . . . Feedback Events . | . . . . . . . . . . . . . . . . . Feedback Blocked . | . . . . . . . . . . . . . . . . . Robot Schematics Acquired . | . . . . . . . . . . . . . . . . . Robots Built 2 | . . . . . . . . . 2 . . . . . . . Matter 252 | . . . . . . . . . 252 . . . . . . . Time 134 | . . . . . . . . . 134 . . . . . . . Total Robot Build Rating 8 | . . . . . . . . . 8 . . . . . . . Part Schematics Acquired 5 | . . . . . 1 . . . . . . . . . 4 . Parts Built . | . . . . . . . . . . . . . . . . . Matter . | . . . . . . . . . . . . . . . . . Time . | . . . . . . . . . . . . . . . . . Total Part Build Rating . | . . . . . . . . . . . . . . . . . Parts Repaired 1 | . . . . . . . . . 1 . . . . . . . Time 22 | . . . . . . . . . 22 . . . . . . . Parts Recycled . | . . . . . . . . . . . . . . . . . Recycled Matter . | . . . . . . . . . . . . . . . . . Retrieved Matter . | . . . . . . . . . . . . . . . . . Retrieved Components . | . . . . . . . . . . . . . . . . . Parts Scanalyzed 2 | . . . . . 2 . . . . . . . . . . . Part Schematics Acquired 1 | . . . . . 1 . . . . . . . . . . . Parts Damaged . | . . . . . . . . . . . . . . . . . Bothacking | -11 -10 -10 -10 -9 -8 -7 -7 -7 -6 -6 -6 -5 -5 -5 -5 -4 ------------ Run | Scr Mat Min Exi Min Mat Fac Gar Fac Fac Was Fac Fac Upp Upp Zhi Pro Used RIF Installer 1 | . . . . . . . 1 . . . . . . . . . Robots Hacked 12 | . . . . . . . . . 3 2 4 3 . . . . Non-combat 10 | . . . . . . . . . 3 . 4 3 . . . . Combat 2 | . . . . . . . . . . 2 . . . . . . Robot Hacks Applied 21 | . . . . . . . . . 7 4 7 3 . . . . parse_system 4 | . . . . . . . . . 1 1 1 1 . . . . no_distress 2 | . . . . . . . . . . . 2 . . . . . generate_echo 1 | . . . . . . . . . 1 . . . . . . . map_walls 1 | . . . . . . . . . 1 . . . . . . . drop_inventory 4 | . . . . . . . . . . . 3 1 . . . . find_recycling 1 | . . . . . . . . . 1 . . . . . . . map_route 3 | . . . . . . . . . 1 . 1 1 . . . . ignore_targets 3 | . . . . . . . . . . 3 . . . . . . link_fov 1 | . . . . . . . . . 1 . . . . . . . streamctrl_low 1 | . . . . . . . . . 1 . . . . . . . Relay Couplers Released 11 | . . . . . . . 11 . . . . . . . . . Machine Destruction 11 | . . . . . . . 11 . . . . . . . . . Attached 3 | . . . . . . . . . 1 1 1 . . . . . Robots Rewired 2 | . . . . . . . . . . . . . . 2 . . Allies Hacked . | . . . . . . . . . . . . . . . . . Hacks Repelled . | . . . . . . . . . . . . . . . . . Allies | -11 -10 -10 -10 -9 -8 -7 -7 -7 -6 -6 -6 -5 -5 -5 -5 -4 -------- Run | Scr Mat Min Exi Min Mat Fac Gar Fac Fac Was Fac Fac Upp Upp Zhi Pro Total Allies 7 | . 1 . . . . . . 1 3 . . . . 2 . . Largest Group 2 | . 1 . . . . . . 1 2 . . . . 1 . . Highest-Rated Group 64 | . 10 . . . . . . 26 64 . . . . 30 . . Highest-Rated Ally 32 | . 10 . . . . . . 26 32 . . . . 30 . . Total Orders . | . . . . . . . . . . . . . . . . . Ally Attacks 12 | . . . . . . . . . 5 . . . . 7 . . Total Damage 371 | . . . . . . . . . 221 . . . . 150 . . Kills 1 | . . . . . . . . . 1 . . . . . . . Allies Corrupted . | . . . . . . . . . . . . . . . . . Allies Melted . | . . . . . . . . . . . . . . . . . Intel | -11 -10 -10 -10 -9 -8 -7 -7 -7 -6 -6 -6 -5 -5 -5 -5 -4 ------- Run | Scr Mat Min Exi Min Mat Fac Gar Fac Fac Was Fac Fac Upp Upp Zhi Pro Robot Analysis Total 4 | . . . . . . . . . . . . . . . 4 . Derelict Logs Recovered 5 | . . 2 . 1 . . . . . . . . 2 . . . Drone Launches . | . . . . . . . . . . . . . . . . . Drone Recoveries . | . . . . . . . . . . . . . . . . . Exploration | -11 -10 -10 -10 -9 -8 -7 -7 -7 -6 -6 -6 -5 -5 -5 -5 -4 ------------- Run | Scr Mat Min Exi Min Mat Fac Gar Fac Fac Was Fac Fac Upp Upp Zhi Pro Turns Passed 15576 | . 993 796 579 693 1534 345 544 1841 1818 959 1965 684 1102 1504 94 125 Spaces Moved 8441 | 1 561 637 444 492 643 241 288 1006 850 437 805 314 638 694 162 228 Core 71 | . . . . . . . . . . . . . . 20 . 51 Treads 4370 | . 22 . . . 217 . . 665 850 437 805 314 638 422 . . Legs 112 | 1 86 . . . . . . . . . . . . 25 . . Wheels 3322 | . 453 637 444 492 426 241 288 341 . . . . . . . . Hover . | . . . . . . . . . . . . . . . . . Flight 566 | . . . . . . . . . . . . . . 227 162 177 Fastest Speed 40 | 120 110 120 120 140 140 120 120 120 175 175 180 160 160 40 40 40 Average Speed 148 | 120 122 120 129 140 164 123 120 161 175 179 180 175 160 153 40 42 Slowest Speed 1700 | 120 200 120 140 140 240 130 130 175 175 180 180 180 160 1700 40 50 Overloaded Moves . | . . . . . . . . . . . . . . . . . Propulsion Burnouts . | . . . . . . . . . . . . . . . . . Robots Hopped 1 | . . . . . . . . . . . . . . 1 . . Cave-ins Triggered 1 | . . . . . 1 . . . . . . . . . . . Exploration Rate (%) 53 | 1 90 98 85 91 56 5 38 26 23 99 16 11 92 83 60 41 Regions Visited 16 Branch Regions 7 Pre-discovered Areas 9 | . 1 1 1 . 1 . . 1 . . . . 1 . 3 . Known Exits Taken 4 | . . 1 . . . 1 . 1 . . 1 . . . . . Unknown Exits Taken 9 | 1 1 . 1 1 1 . . . . . . 1 1 1 1 . Scrap Searched 8 | . . 1 . 1 . . . . . . . . 4 1 . 1 Spaces Dug 89 | . . . . . 2 . . 16 17 6 20 7 5 16 . . Terrain Destroyed 436 | . . 9 . . 117 . 12 16 73 26 33 46 22 82 . . Melee 89 | . . . . . 2 . . 16 17 6 20 7 5 16 . . Projectile 17 | . . . . . . . . . 2 1 2 . . 12 . . AOE 330 | . . 9 . . 115 . 12 . 54 19 11 39 17 54 . . Actions | -11 -10 -10 -10 -9 -8 -7 -7 -7 -6 -6 -6 -5 -5 -5 -5 -4 --------- Run | Scr Mat Min Exi Min Mat Fac Gar Fac Fac Was Fac Fac Upp Upp Zhi Pro Total 10358 | . 778 659 450 496 925 279 461 1172 1000 512 1183 400 688 938 177 240 Wait 769 | . 127 11 . 4 110 10 139 55 13 . 225 19 11 45 . . Move 8423 | . 560 636 443 491 642 240 286 1005 850 436 804 313 637 691 161 228 Hop 1 | . . . . . . . . . . . . . . 1 . . Pick Up 126 | . 12 2 4 1 15 7 4 16 7 11 23 8 6 8 2 . Fast Attach 66 | . 4 . 1 . 14 5 1 12 5 3 4 4 1 6 3 3 Attach 70 | . . 1 . . 12 2 . 3 6 7 13 2 1 23 . . Detach 16 | . 1 . . . 2 . . 2 3 . 6 . . 2 . . Swap 135 | . 5 2 1 . 13 1 5 9 18 9 26 16 9 21 . . Drop 115 | . 11 1 1 . 8 9 5 29 6 5 13 11 6 5 4 1 Fire 470 | . 58 6 . . 107 5 13 20 60 35 48 17 12 89 . . Melee 130 | . . . . . 2 . . 17 31 6 21 10 5 23 7 8 Ram . | . . . . . . . . . . . . . . . . . Kick . | . . . . . . . . . . . . . . . . . Crush 1 | . . . . . . . . . 1 . . . . . . . Escape Stasis 12 | . . . . . . . 8 4 . . . . . . . . Rewire 24 | . . . . . . . . . . . . . . 24 . . Trap . | . . . . . . . . . . . . . . . . . Miscellaneous . | . . . . . . . . . . . . . . . . . Route ------- -11/Scrapyard -10/Materials (discovered 4 exits: [*Mat x3] / [*Min]) -10/Mines (discovered 3 exits: [*Mat x2] / *Exi) -10/Exiles -9/Mines (discovered 2 exits: *Mat x2) -8/Materials (discovered 2 exits: *Fac x2) -7/Factory -7/Garrison -7/Factory (discovered 2 exits: *Fac / [*Low]) -6/Factory (discovered 2 exits: Low x2) -6/Waste -6/Factory -5/Factory (discovered 2 exits: [Fac] / *Upp) -5/Upper Caves -5/Upper Caves -5/Zhirov -4/Proximity Caves History --------- Turn | Location | Event 1 | -11/Scrapyard | Discovered new exit (range 0) 1 | -11/Scrapyard | Entered Materials 125 | -10/Materials | Discovered new exit (range 14) 317 | -10/Materials | Build established: Mutant 487 | -10/Materials | Discovered new exit (range 9) 665 | -10/Materials | Discovered new exit (range 3) 900 | -10/Materials | Discovered new exit (range 9) 994 | -10/Materials | Entered Mines 1060 | -10/Mines | YI-UF0 nonchalantly dropped a Grenade Launcher on the ground 1071 | -10/Mines | Identified exit to Exiles 1075 | -10/Mines | Learned Materials garrison access intel 1087 | -10/Mines | Discovered new exit (range 14) 1615 | -10/Mines | Discovered new exit (range 9) 1687 | -10/Mines | Learned location of Storage (-9) 1785 | -10/Mines | Deemed a non-threat by the Exiles lab entrance 1790 | -10/Mines | Entered Exiles 1822 | -10/Exiles | Met 8R-AWN 1841 | -10/Exiles | Met EX-HEX 1897 | -10/Exiles | Met EX-DEC 1917 | -10/Exiles | Visited The Gauntlet 2040 | -10/Exiles | Learned location of Zion (-6) 2154 | -10/Exiles | Met EX-BIN 2174 | -10/Exiles | Aligned with FarCom system 2175 | -10/Exiles | Given EX-Vault access code 2209 | -10/Exiles | Opened EX-Vault 2221 | -10/Exiles | Found YOLO Cannon 2249 | -10/Exiles | Warned to stay clear of 0b10 Research branches 2350 | -10/Exiles | Discovered new exit (range 15) 2369 | -10/Exiles | Left Exiles lab with YOLO Cannon 2369 | -10/Exiles | Entered Mines 2374 | -9/Mines | Build established: Hauler-Mutant 2438 | -9/Mines | Learned Materials garrison access intel 2473 | -9/Mines | Received a Rocket Launcher from a helpful Derelict 2513 | -9/Mines | Discovered new exit (range 15) 2537 | -9/Mines | Discovered new exit (range 4) 3062 | -9/Mines | Entered Materials 3062 | -8/Materials | Evolved 4 slots: Utility x4 3063 | -8/Materials | Loaded intel: 1 garrison access location 3393 | -8/Materials | Lost 3 parts (1p2u) 3397 | -8/Materials | Destroyed 7 combat bots 3478 | -8/Materials | Destroyed 10 combat bots 3485 | -8/Materials | Lost 5 parts (1p2n1u1w) 3605 | -8/Materials | Lost 3 parts (2n1u) 3864 | -8/Materials | Discovered new exit (range 12) 4079 | -8/Materials | Crushed by falling debris 4118 | -8/Materials | Core integrity fell below 50% 4444 | -8/Materials | Discovered new exit (range 15) 4596 | -8/Materials | Entered Factory 4596 | -7/Factory | Evolved 2 slots: Propulsion x1, Weapon x1 4649 | -7/Factory | Identified exit to Garrison 4941 | -7/Factory | Entered Garrison 4947 | -7/Garrison | Installed Relay Interface Framework 5008 | -7/Garrison | Triggered checkpoint 5018 | -7/Garrison | Garrison Relay disabled 5072 | -7/Garrison | Triggered checkpoint 5268 | -7/Garrison | Triggered checkpoint 5304 | -7/Garrison | Garrison Relay disabled 5360 | -7/Garrison | Garrison Relay disabled 5387 | -7/Garrison | Triggered checkpoint 5474 | -7/Garrison | Discovered new exit (range 9) 5485 | -7/Garrison | Entered Factory 6362 | -7/Factory | Discovered new exit (range 16) 6430 | -7/Factory | Identified exit to Factory 6685 | -7/Factory | Build established: Hauler-Tank 6857 | -7/Factory | Discovered new exit (range 9) 7291 | -7/Factory | Build established: Hauler-Mutant 7326 | -7/Factory | Entered another Factory area 7326 | -6/Factory | Accompanied by 1 ally 7326 | -6/Factory | Evolved 2 slots: Utility x1, Weapon x1 7614 | -6/Factory | Build established: Hauler-Assassin 8248 | -6/Factory | Identified exit to Lower Caves 8539 | -6/Factory | Fabricated Y-54 Guardian? 8539 | -6/Factory | Build established: Hauler-Skirmisher 8948 | -6/Factory | Repaired Hrd. Heavy Armor Plating 9144 | -6/Factory | Sucked down chute 9144 | -6/Factory | Entered Waste 9159 | -6/Waste | EMP discharged 9159 | -6/Waste | System corruption reached 10% 9207 | -6/Waste | Spotted C-40 Crusher 9216 | -6/Waste | Destroyed C-40 Crusher 9253 | -6/Waste | Spotted C-40 Crusher 9259 | -6/Waste | EMP discharged 9265 | -6/Waste | Spotted C-40 Crusher 9278 | -6/Waste | Spotted C-40 Crusher 9326 | -6/Waste | Destroyed C-40 Crusher 9331 | -6/Waste | Destroyed C-40 Crusher 9342 | -6/Waste | Spotted C-40 Crusher 9345 | -6/Waste | Crushed by Compactor (1 part destroyed, 1 dropped) 9347 | -6/Waste | Destroyed C-40 Crusher 9354 | -6/Waste | Spotted C-40 Crusher 9356 | -6/Waste | Crushed by Compactor (0 parts destroyed, 1 dropped) 9359 | -6/Waste | EMP discharged 9459 | -6/Waste | EMP discharged 9459 | -6/Waste | System corruption reached 30% 9532 | -6/Waste | Discovered new exit (range 11) 9559 | -6/Waste | EMP discharged 9659 | -6/Waste | EMP discharged 9701 | -6/Waste | Destroyed C-40 Crusher 9759 | -6/Waste | EMP discharged 9833 | -6/Waste | Build established: Hauler-Tank 9859 | -6/Waste | EMP discharged 9935 | -6/Waste | Destroyed C-40 Crusher 9959 | -6/Waste | EMP discharged 10059 | -6/Waste | EMP discharged 10103 | -6/Waste | Entered Factory 10396 | -6/Factory | Discovered new exit (range 15) 10602 | -6/Factory | Identified exit to Factory 11057 | -6/Factory | Build established: Hauler-Skirmisher 11141 | -6/Factory | Lost 3 parts (1u2w) 11521 | -6/Factory | Build established: Hauler-Tank 11883 | -6/Factory | Build established: Hauler-Mutant 12068 | -6/Factory | Entered another Factory area 12068 | -5/Factory | Evolved 2 slots: Propulsion x1, Utility x1 12542 | -5/Factory | Build established: Hauler-Assassin 12703 | -5/Factory | Discovered new exit (range 65) 12725 | -5/Factory | Discovered new exit (range 16) 12752 | -5/Factory | Entered Upper Caves 12964 | -5/Upper Caves | Attracted the attention of an 0b10 checkpoint 13071 | -5/Upper Caves | Learned 8 Research zone layouts 13071 | -5/Upper Caves | Learned Factory trap positions 13071 | -5/Upper Caves | Learned Research emergency access door positions 13071 | -5/Upper Caves | Learned Armory emergency access door positions 13071 | -5/Upper Caves | Learned Extension stockpile data 13071 | -5/Upper Caves | Learned Factory terminal intel 13071 | -5/Upper Caves | Learned Factory garrison access intel 13079 | -5/Upper Caves | Build established: Hauler-Skirmisher 13541 | -5/Upper Caves | Encountered a Warlord checkpoint 13703 | -5/Upper Caves | Learned Factory emergency access door positions 13756 | -5/Upper Caves | Discovered new exit (range 22) 13854 | -5/Upper Caves | Entered another Upper Caves area 13875 | -5/Upper Caves | Spotted B-75 Beast 14000 | -5/Upper Caves | Attracted the attention of an 0b10 checkpoint 14281 | -5/Upper Caves | Build established: Hauler-Mutant 14813 | -5/Upper Caves | Lost 6 parts (2n2u2w) 14840 | -5/Upper Caves | Attracted the attention of an 0b10 outpost 14914 | -5/Upper Caves | Core integrity fell below 50% 14925 | -5/Upper Caves | Destroyed 9 combat bots 15022 | -5/Upper Caves | Lost 20 parts (1p2n6u11w) 15154 | -5/Upper Caves | Core integrity fell below 20% 15223 | -5/Upper Caves | Lost 7 parts (1p3u3w) 15331 | -5/Upper Caves | Discovered new exit (range 13) 15358 | -5/Upper Caves | Entered Zhirov 15358 | -5/Zhirov | Discovered new exit (range 3) 15366 | -5/Zhirov | Met Zhirov 15373 | -5/Zhirov | Learned location of Quarantine (-3) 15373 | -5/Zhirov | Learned location of Command (-1) 15377 | -5/Zhirov | Zhirov requested help retrieving the SGEMP Prototype 15385 | -5/Zhirov | Found Alien Artifact 15385 | -5/Zhirov | Identified Integrated Dissipator 15385 | -5/Zhirov | Installed Integrated Dissipator, increased core heat dissipation (+20) 15391 | -5/Zhirov | Found Alien Artifact 15452 | -5/Zhirov | Entered Proximity Caves 15491 | -4/Proximity Caves | Build established: Mutant 15565 | -4/Proximity Caves | Attracted the attention of an 0b10 outpost 15577 | -4/Proximity Caves | Destroyed by S-27 Virus with Autogun Last Messages --------------- 15504_ 4C-15Q(g) destroyed. 15507_ Sneak attack on MJ-ZC2(b). 15507_ MJ-ZC2(b) destroyed. 15510_ Acquired Power Maul. 15512_ Dropped Hvy. Mace. 15512_ Acquired 10 matter. 15523_ USAVJGAY:OUB